bitfinex/quotes_BTCUSD_20250223
["timestamp","ask_amount","ask_price","bid_price","bid_amount"]
[1740321776016,0.0017014,95977.0,95976.0,0.13157321]
[1740321777153,0.0017014,95977.0,95976.0,0.28282332]
[1740321777329,0.0017014,95977.0,95976.0,0.28157321]
[1740321777709,0.0017014,95977.0,95976.0,0.27957321]
[1740321777893,0.0017014,95977.0,95976.0,0.27757321]
[1740321778093,0.0016614,95977.0,95976.0,0.27957321]
[1740321778287,0.0016614,95977.0,95976.0,0.27757321]
[1740321778703,0.0016614,95977.0,95976.0,0.28057321]
[1740321779614,0.0016614,95977.0,95976.0,0.28257321]
[1740321780255,0.0016614,95977.0,95976.0,0.28057321]
[1740321780467,0.0016614,95977.0,95976.0,0.28457321]
[1740321780692,0.0016614,95977.0,95976.0,0.30499669]
[1740321782669,0.0783614,95977.0,95976.0,0.30499669]
[1740321783061,0.0783614,95977.0,95976.0,0.15499669]
[1740321784975,0.0016614,95977.0,95976.0,0.15499669]
[1740321785665,0.0016614,95977.0,95976.0,0.15624681]
[1740321786064,0.0016614,95977.0,95976.0,0.15499669]
[1740321786276,0.0016614,95977.0,95976.0,0.30499669]
[1740321787227,0.0016614,95977.0,95976.0,0.30099669]
[1740321787422,0.0016614,95977.0,95976.0,0.30699669]
[1740321787927,0.0016614,95977.0,95976.0,0.30399669]
[1740321788202,0.0016614,95977.0,95976.0,0.30899669]
[1740321788389,0.0016614,95977.0,95976.0,0.30399669]
[1740321788765,0.0016614,95977.0,95976.0,0.30999669]
[1740321791890,0.0016614,95977.0,95976.0,0.31787669]
[1740321793388,0.0016614,95977.0,95976.0,0.31872649]
[1740321793789,0.0016614,95977.0,95976.0,0.31084649]
[1740321793989,0.0016614,95977.0,95976.0,0.31872649]
[1740321794213,0.0016614,95977.0,95976.0,0.29630564]
[1740321800699,0.0016614,95977.0,95976.0,0.31084649]
[1740321802820,0.0016614,95977.0,95976.0,0.31872649]
[1740321803016,0.0016614,95977.0,95976.0,0.35126395]
[1740321803748,0.31761351,95983.0,95977.0,0.16454085]
[1740321804070,0.31761351,95983.0,95980.0,0.01454085]
[1740321804192,0.31761351,95983.0,95982.0,0.16454085]
[1740321804402,0.31761351,95983.0,95982.0,0.299724]
[1740321805890,0.31761351,95983.0,95982.0,0.303724]
[1740321806261,0.0778,95994.0,95982.0,0.303724]
[1740321806458,0.0778,95994.0,95984.0,0.16454085]
[1740321806661,0.0778,95994.0,95986.0,0.01454085]
[1740321806887,0.0778,95994.0,95987.0,0.10264569]
[1740321810875,0.0778,95994.0,95987.0,0.10364569]
[1740321812104,0.31761351,95993.0,95987.0,0.10364569]
[1740321814459,0.31761351,95993.0,95987.0,0.10464569]
[1740321815181,0.31761351,95993.0,95987.0,0.10364569]
[1740321815481,0.31761351,95993.0,95987.0,0.10464569]
[1740321825240,0.31761351,95993.0,95988.0,0.01454085]
[1740321825392,0.31761351,95993.0,95990.0,0.01454085]
[1740321825595,0.31761351,95993.0,95991.0,0.10264569]
[1740321825804,0.0016996,95994.0,95992.0,0.01454085]
[1740321826048,0.0016996,95994.0,95993.0,0.10264569]
[1740321827217,0.0016996,95994.0,95993.0,0.10364569]
[1740321827420,0.0016996,95994.0,95993.0,0.10464569]
[1740321830497,0.0016996,95994.0,95993.0,0.13720035]
[1740321831401,0.0016996,95994.0,95993.0,0.10464569]
[1740321833006,0.0016996,95994.0,95993.0,0.26918654]
[1740321833405,0.0016996,95994.0,95993.0,0.30173508]
[1740321833820,0.0016996,95994.0,95993.0,0.30073508]
[1740321834242,0.0016996,95994.0,95993.0,0.30473508]
[1740321834808,0.0016996,95994.0,95993.0,0.3242631]
[1740321835008,0.0016996,95994.0,95993.0,0.31231262]
[1740321835230,0.0016996,95994.0,95993.0,0.31131262]
[1740321835626,0.0016996,95994.0,95993.0,0.31531262]
[1740321839012,0.0016596,95994.0,95993.0,0.31531262]
[1740321840204,0.0016596,95994.0,95993.0,0.2957846]
[1740321840820,0.0016596,95994.0,95993.0,0.28124375]
[1740321841430,0.0016596,95994.0,95993.0,0.13124375]
[1740321841616,0.0814596,95994.0,95993.0,0.02859806]
[1740321842152,0.0814596,95994.0,95993.0,0.02059806]
[1740321842351,0.0814596,95994.0,95993.0,0.003]
[1740321842560,0.0814596,95994.0,95986.0,0.09370382]
[1740321842768,0.0814596,95994.0,95987.0,0.10264569]
[1740321842968,0.0814596,95994.0,95993.0,0.02352978]
[1740321843380,0.0814596,95994.0,95993.0,0.02052978]
[1740321843788,0.0814596,95994.0,95993.0,0.01952978]
[1740321844822,0.39907311,95994.0,95993.0,0.01952978]
[1740321845957,0.39907311,95994.0,95993.0,0.02152978]
[1740321846820,0.39894663,95994.0,95993.0,0.02152978]
[1740321849694,0.39894663,95994.0,95993.0,0.04263725]
[1740321852330,0.39894663,95994.0,95993.0,0.04348685]
[1740321856119,0.39894663,95994.0,95993.0,0.04248685]
[1740321856331,0.39894663,95994.0,95993.0,0.02037938]
[1740321856522,0.39894663,95994.0,95993.0,0.02137938]
[1740321856721,0.39894663,95994.0,95993.0,0.02237938]
[1740321857184,0.39894663,95994.0,95993.0,0.0028496]
[1740321859031,0.39894663,95994.0,95993.0,0.0018496]
[1740321859365,0.39894663,95994.0,95993.0,0.0008496]
[1740321876560,0.44574663,95994.0,95993.0,0.0008496]
[1740321877967,0.54839232,95994.0,95993.0,0.0008496]
[1740321879234,0.44574663,95994.0,95993.0,0.0008496]
[1740321879440,0.39894663,95994.0,95993.0,0.0008496]
[1740321880662,0.39994663,95994.0,95993.0,0.0008496]
[1740321881098,0.40294663,95994.0,95993.0,0.0008496]
[1740321888106,0.32314663,95994.0,95993.0,0.0008496]
[1740321896686,0.32288155,95994.0,95993.0,0.0008496]
[1740321899926,0.32284155,95994.0,95993.0,0.0008496]
[1740321902889,0.31984155,95994.0,95993.0,0.0008496]
[1740321903229,0.32284155,95994.0,95993.0,0.0008496]
[1740321903843,0.32184155,95994.0,95993.0,0.0008496]
[1740321904370,0.31884155,95994.0,95993.0,0.0008496]
[1740321904829,0.32184155,95994.0,95993.0,0.0008496]
[1740321905289,0.31884155,95994.0,95993.0,0.0008496]
[1740321905624,0.32184155,95994.0,95993.0,0.0008496]
[1740321911350,0.32184155,95994.0,95993.0,0.02165182]
[1740321913959,1.36354155,95994.0,95993.0,0.0008496]
[1740321914572,1.54128724,95994.0,95993.0,0.0008496]
[1740321915940,1.53828724,95994.0,95993.0,0.0008496]
[1740321916313,1.54128724,95994.0,95993.0,0.0018496]
[1740321917109,1.54328724,95994.0,95993.0,0.0018496]
[1740321917627,1.54028724,95994.0,95993.0,0.0008496]
[1740321918045,1.54628724,95994.0,95993.0,0.0018496]
[1740321925329,1.47118724,95994.0,95993.0,0.0018496]
[1740321953594,1.36854155,95994.0,95993.0,0.0018496]
[1740321955338,1.36854155,95994.0,95993.0,0.0476496]
[1740321959436,1.36854155,95994.0,95993.0,0.05817521]
[1740321959587,1.36854155,95994.0,95993.0,0.0476496]
[1740321960806,1.36850155,95994.0,95993.0,0.0476496]
[1740321964863,1.36850155,95994.0,95993.0,0.0687694]
[1740321967011,1.36850155,95994.0,95993.0,0.0229694]
[1740321975037,1.36850155,95994.0,95993.0,0.0018496]
[1740321980454,1.36810539,95994.0,95993.0,0.0018496]
[1740321984557,1.36810539,95994.0,95993.0,0.0014496]
[1740321994868,1.44970539,95994.0,95993.0,0.0014496]
[1740321995068,1.55235108,95994.0,95993.0,0.0014496]
[1740321996013,1.55153479,95994.0,95993.0,0.0014496]
[1740321997473,1.54553479,95994.0,95993.0,0.0004496]
[1740321998434,1.55053479,95994.0,95993.0,0.0014496]
[1740321998667,1.55053479,95994.0,95993.0,0.0024496]
[1740321998867,1.55653479,95994.0,95993.0,0.0024496]
[1740321999066,1.55053479,95994.0,95993.0,0.0014496]
[1740321999488,1.55753479,95994.0,95993.0,0.0024496]
[1740322000108,1.55053479,95994.0,95993.0,0.0014496]
[1740322000441,1.55753479,95994.0,95993.0,0.0014496]
[1740322000649,1.70753479,95994.0,95993.0,0.0014496]
[1740322001715,1.69353479,95994.0,95993.0,0.0004496]
[1740322002017,1.69353479,95994.0,95993.0,0.0014496]
[1740322002018,1.70923519,95994.0,95993.0,0.0014496]
[1740322002195,1.70923519,95994.0,95993.0,0.0004496]
[1740322002605,1.71623519,95994.0,95993.0,0.0014496]
[1740322003128,1.70923519,95994.0,95993.0,0.0014496]
[1740322003329,1.71623519,95994.0,95993.0,0.0014496]
[1740322006322,1.72390959,95994.0,95993.0,0.0014496]
[1740322021487,1.72386959,95994.0,95993.0,0.0014496]
[1740322032692,1.7753942,95994.0,95993.0,0.0014496]
[1740322033104,1.80993505,95994.0,95993.0,0.001]
[1740322033311,0.02,95978.0,95975.0,0.00012972]
[1740322033521,0.25264569,95978.0,95975.0,0.00012972]
[1740322033666,0.27264569,95978.0,95975.0,0.00012972]
[1740322033875,0.25264569,95978.0,95975.0,0.00012972]
[1740322034093,0.27264569,95978.0,95975.0,0.00012972]
[1740322036083,0.27864569,95978.0,95975.0,0.00012972]
[1740322036321,0.28564569,95978.0,95975.0,0.00012972]
[1740322037357,0.26564569,95978.0,95975.0,0.00012972]
[1740322037988,0.58174519,95978.0,95975.0,0.00012972]
[1740322040550,0.57474519,95978.0,95975.0,0.00012972]
[1740322040755,0.58174519,95978.0,95975.0,0.00012972]
[1740322042569,0.56874519,95978.0,95975.0,0.00012972]
[1740322042730,0.58274519,95978.0,95975.0,0.00012972]
[1740322044297,0.80078917,95978.0,95975.0,0.00012972]
[1740322044496,0.73021065,95978.0,95975.0,0.00012972]
[1740322044750,0.75021065,95978.0,95975.0,0.00012972]
[1740322045753,0.77366334,95978.0,95975.0,0.00012972]
[1740322046678,0.78066334,95978.0,95975.0,0.00012972]
[1740322046863,0.77366334,95978.0,95975.0,0.00012972]
[1740322047063,0.85881367,95978.0,95975.0,0.00012972]
[1740322048649,0.96861367,95978.0,95975.0,0.00012972]
[1740322048847,0.85881367,95978.0,95975.0,0.00012972]
[1740322049065,0.85181367,95978.0,95975.0,0.00012972]
[1740322049505,0.85881367,95978.0,95975.0,0.00012972]
[1740322049820,0.02,95966.0,95949.0,0.13260241]
[1740322050040,0.15,95958.0,95949.0,0.13260241]
[1740322050249,0.15,95956.0,95949.0,0.13260241]
[1740322050370,0.10264569,95955.0,95949.0,0.13260241]
[1740322052672,0.10964569,95955.0,95949.0,0.13260241]
[1740322052880,0.11987487,95955.0,95949.0,0.13260241]
[1740322053174,0.10964569,95955.0,95949.0,0.13260241]
[1740322053376,0.11464569,95955.0,95949.0,0.13260241]
[1740322055737,0.31427018,95954.0,95949.0,0.13260241]
[1740322055942,0.10264569,95953.0,95949.0,0.13260241]
[1740322057477,0.10764569,95953.0,95949.0,0.13260241]
[1740322058780,0.11464569,95953.0,95949.0,0.13260241]
[1740322059407,0.11464569,95953.0,95949.0,0.13345261]
[1740322061688,0.31427018,95952.0,95949.0,0.13345261]
[1740322061887,0.10264569,95951.0,95949.0,0.13345261]
[1740322063155,0.10664569,95951.0,95949.0,0.13345261]
[1740322064365,0.46427018,95950.0,95949.0,0.0008502]
[1740322064603,0.56691587,95950.0,95949.0,0.0008502]
[1740322065777,0.57091587,95950.0,95949.0,0.0008502]
[1740322065976,0.56691587,95950.0,95949.0,0.0008502]
[1740322066378,0.57091587,95950.0,95949.0,0.0008502]
[1740322067388,0.57091587,95950.0,95938.0,0.08290241]
[1740322067567,0.15,95948.0,95938.0,0.08290241]
[1740322067767,0.15,95946.0,95938.0,0.08290241]
[1740322068006,0.15,95944.0,95938.0,0.08290241]
[1740322068216,0.10264569,95943.0,95938.0,0.08290241]
[1740322068758,0.10264569,95943.0,95938.0,0.08294567]
[1740322069701,0.10464569,95943.0,95938.0,0.08294567]
[1740322070179,0.15,95942.0,95938.0,4.326e-05]
[1740322070332,0.15,95940.0,95938.0,4.326e-05]
[1740322070535,0.10264569,95939.0,95938.0,4.326e-05]
[1740322071068,0.25264569,95939.0,95938.0,4.326e-05]
[1740322071466,0.56691587,95939.0,95938.0,4.326e-05]
[1740322071621,0.56691587,95939.0,95938.0,0.00089356]
[1740322071835,0.57191587,95939.0,95938.0,0.00089356]
[1740322072258,0.15,95938.0,95931.0,0.03857779]
[1740322072459,0.15,95936.0,95931.0,0.03862105]
[1740322072660,0.15,95934.0,95931.0,0.03862105]
[1740322072882,0.15,95932.0,95931.0,0.03862105]
[1740322073081,0.25264569,95932.0,95931.0,0.03862105]
[1740322074936,0.25764569,95932.0,95931.0,0.03862105]
[1740322075295,0.26064569,95932.0,95931.0,0.03862105]
[1740322076550,0.57491587,95932.0,95931.0,0.03862105]
[1740322082372,0.57487587,95932.0,95931.0,0.03862105]
[1740322084288,0.57487587,95932.0,95931.0,0.03947155]
[1740322088759,0.57487587,95932.0,95931.0,0.00089376]
[1740322092123,0.79416503,95932.0,95922.0,0.0499]
[1740322092419,0.15,95930.0,95922.0,4.316e-05]
[1740322092621,0.15,95928.0,95922.0,4.316e-05]
[1740322092880,0.15,95926.0,95922.0,4.316e-05]
[1740322093074,0.15,95924.0,95922.0,4.316e-05]
[1740322093286,0.25264569,95923.0,95922.0,4.316e-05]
[1740322094313,0.26319619,95923.0,95922.0,4.316e-05]
[1740322095642,0.26819619,95923.0,95922.0,4.316e-05]
[1740322096196,0.27519619,95923.0,95922.0,4.316e-05]
[1740322096600,0.27519619,95923.0,95922.0,0.00089386]
[1740322097441,0.58946637,95923.0,95922.0,0.00089386]
[1740322110473,0.59725551,95923.0,95922.0,0.00089386]
[1740322113896,0.58946637,95923.0,95922.0,0.00089386]
[1740322119645,0.58946637,95923.0,95922.0,0.02190139]
[1740322123381,0.57891587,95923.0,95922.0,0.02190139]
[1740322124984,0.58956305,95923.0,95922.0,0.02190139]
[1740322130822,0.32627018,95923.0,95922.0,0.02190139]
[1740322131559,0.32627018,95923.0,95922.0,0.06980139]
[1740322131965,0.31427018,95923.0,95922.0,0.06980139]
[1740322132104,0.31927018,95923.0,95922.0,0.06980139]
[1740322132301,0.32227018,95923.0,95922.0,0.06980139]
[1740322132562,0.32227018,95923.0,95922.0,0.15000139]
[1740322132927,0.31727018,95923.0,95922.0,0.15000139]
[1740322133135,0.32127018,95923.0,95922.0,0.15000139]
[1740322133953,0.31727018,95923.0,95922.0,0.15000139]
[1740322134569,0.31427018,95923.0,95922.0,0.15000139]
[1740322134963,0.31627018,95923.0,95922.0,0.15000139]
[1740322135147,0.31827018,95923.0,95922.0,0.15000139]
[1740322135586,0.31527018,95923.0,95922.0,0.15000139]
[1740322135952,0.31827018,95923.0,95922.0,0.15000139]
[1740322140853,0.31727018,95923.0,95922.0,0.15000139]
[1740322141146,0.31527018,95923.0,95922.0,0.15000139]
[1740322141556,0.31727018,95923.0,95922.0,0.15000139]
[1740322143460,0.31723018,95923.0,95922.0,0.15000139]
[1740322143691,0.31723018,95923.0,95922.0,0.06980139]
[1740322159351,0.31893178,95923.0,95922.0,0.06980139]
[1740322163142,0.31893178,95923.0,95922.0,0.14930139]
[1740322166474,0.31893178,95923.0,95922.0,0.14930139]
[1740322167669,0.31893178,95923.0,95922.0,0.12829386]
[1740322173359,0.31793178,95923.0,95922.0,0.12829386]
[1740322173529,0.31593178,95923.0,95922.0,0.12829386]
[1740322173738,0.31893178,95923.0,95922.0,0.12829386]
[1740322174749,0.31693178,95923.0,95922.0,0.12829386]
[1740322175162,0.31593178,95923.0,95922.0,0.12829386]
[1740322176188,0.31593178,95923.0,95922.0,0.12929386]
[1740322180976,0.31593178,95923.0,95922.0,0.13255606]
[1740322182894,0.31593178,95923.0,95922.0,0.12929386]
[1740322195760,0.31593178,95923.0,95922.0,0.04979386]
[1740322201528,0.31593178,95923.0,95922.0,0.00189386]
[1740322204176,0.31589178,95923.0,95922.0,0.00189386]
[1740322209172,0.31589178,95923.0,95922.0,0.00089386]
[1740322211897,0.0017016,95923.0,95922.0,0.18293955]
[1740322212112,0.0017016,95923.0,95922.0,0.2449804]
[1740322212925,0.0017016,95923.0,95922.0,0.2459804]
[1740322214308,0.0017016,95923.0,95922.0,0.2449804]
[1740322214602,0.0017016,95923.0,95922.0,0.2459804]
[1740322214979,0.0017016,95923.0,95922.0,0.2449804]
[1740322215358,0.0017016,95923.0,95922.0,0.2459804]
[1740322216813,0.0017016,95923.0,95922.0,0.1665804]
[1740322219927,0.5017016,95923.0,95922.0,0.1665804]
[1740322220895,0.5017016,95923.0,95922.0,0.1190804]
[1740322229951,0.5017016,95923.0,95914.0,0.01454085]
[1740322230161,0.50174469,95923.0,95915.0,0.10264569]
[1740322232902,0.50174469,95923.0,95916.0,0.01454085]
[1740322233050,0.50174469,95923.0,95918.0,0.01454085]
[1740322233253,0.50174469,95923.0,95919.0,0.10264569]
[1740322259171,0.50174469,95923.0,95912.0,0.00796]
[1740322259172,0.0802,95922.0,95912.0,0.00796]
[1740322260399,0.18984458,95922.0,95911.0,0.01027936]
[1740322260616,0.0802,95921.0,95906.0,0.1508503]
[1740322261017,0.0802,95921.0,95907.0,0.09383596]
[1740322262455,0.10964458,95920.0,95907.0,0.09383596]
[1740322262844,0.0802,95919.0,95907.0,0.09383596]
[1740322263896,0.31419018,95918.0,95907.0,0.09383596]
[1740322264282,0.1273,95919.0,95907.0,0.09383596]
[1740322264460,0.0819,95918.0,95907.0,0.09383596]
[1740322265083,0.08186,95918.0,95906.0,0.01112952]
[1740322266377,0.08186,95918.0,95906.0,0.0008503]
[1740322267434,0.10964458,95916.0,95906.0,0.0008503]
[1740322268056,0.0819,95915.0,95906.0,0.0008503]
[1740322269824,0.31419018,95914.0,95906.0,0.0008503]
[1740322271523,0.31519018,95914.0,95906.0,0.0008503]
[1740322272136,0.31819018,95914.0,95906.0,0.0008503]
[1740322273107,0.31719018,95914.0,95906.0,0.0008503]
[1740322273416,0.31919018,95914.0,95906.0,0.0008503]
[1740322273647,0.31619018,95914.0,95906.0,0.0008503]
[1740322273967,0.32019018,95914.0,95906.0,0.0008503]
[1740322274190,0.0804,95913.0,95906.0,0.0008503]
[1740322275774,0.31419018,95912.0,95906.0,0.0008503]
[1740322279425,0.31719018,95912.0,95906.0,0.0008503]
[1740322279626,0.31819018,95912.0,95906.0,0.0008503]
[1740322280813,0.31719018,95912.0,95906.0,0.0008503]
[1740322281010,0.31419018,95912.0,95906.0,0.0008503]
[1740322281234,0.31819018,95912.0,95906.0,0.0008503]
[1740322281805,0.31519018,95912.0,95906.0,0.0008503]
[1740322282007,0.31719018,95912.0,95906.0,0.0008503]
[1740322282477,0.31619018,95912.0,95906.0,0.0008503]
[1740322282768,0.31719018,95912.0,95906.0,0.0008503]
[1740322290155,0.31519018,95912.0,95906.0,0.0008503]
[1740322290567,0.31619018,95912.0,95906.0,0.0008503]
[1740322291187,0.31419018,95912.0,95906.0,0.0008503]
[1740322291392,0.31619018,95912.0,95906.0,0.0008503]
[1740322291789,0.31719018,95912.0,95906.0,0.0008503]
[1740322293036,0.31619018,95912.0,95906.0,0.0008503]
[1740322293314,0.31719018,95912.0,95906.0,0.0008503]
[1740322298861,0.31619018,95912.0,95906.0,0.0008503]
[1740322299317,0.31719018,95912.0,95906.0,0.0008503]
[1740322299469,0.31619018,95912.0,95906.0,0.0008503]
[1740322299872,0.31719018,95912.0,95906.0,0.0008503]
[1740322300097,0.31619018,95912.0,95906.0,0.0008503]
[1740322300396,0.31719018,95912.0,95906.0,0.0008503]
[1740322304083,0.31619018,95912.0,95906.0,0.0008503]
[1740322304674,0.31619018,95912.0,95907.0,0.00125114]
[1740322304876,0.31419018,95912.0,95906.0,0.0008503]
[1740322305033,0.31419018,95912.0,95907.0,0.001251]
[1740322305222,0.31419018,95912.0,95906.0,0.0008503]
[1740322305433,0.31819018,95912.0,95906.0,0.0008503]
[1740322305657,0.31719018,95912.0,95906.0,0.0008503]
[1740322305858,0.31419018,95912.0,95906.0,0.0008503]
[1740322306282,0.31619018,95912.0,95906.0,0.0008503]
[1740322306727,0.31419018,95912.0,95906.0,0.0008503]
[1740322307967,0.31619018,95912.0,95906.0,0.0008503]
[1740322309993,0.31419018,95912.0,95906.0,0.0008503]
[1740322311234,0.22424569,95911.0,95906.0,0.0008503]
[1740322311440,0.0752,95910.0,95906.0,0.0008503]
[1740322311629,0.10264569,95909.0,95906.0,0.0008503]
[1740322311884,0.0752,95908.0,95906.0,0.0008503]
[1740322312089,0.10264569,95907.0,95906.0,0.0008503]
[1740322312294,0.17784569,95907.0,95906.0,0.0008503]
[1740322314750,0.17984569,95907.0,95906.0,0.0008503]
[1740322315154,0.17784569,95907.0,95906.0,0.0008503]
[1740322315511,0.18184569,95907.0,95906.0,0.0008503]
[1740322316052,0.18384569,95907.0,95906.0,0.0008503]
[1740322320395,0.49803587,95907.0,95906.0,0.0008503]
[1740322320566,0.49803587,95907.0,95906.0,0.02133662]
[1740322325812,0.49799587,95907.0,95906.0,0.02133662]
[1740322329984,0.32019018,95907.0,95906.0,0.02133662]
[1740322330763,0.31419018,95907.0,95906.0,0.02133662]
[1740322331170,0.31819018,95907.0,95906.0,0.02133662]
[1740322331775,0.31419018,95907.0,95906.0,0.02133662]
[1740322332178,0.31619018,95907.0,95906.0,0.02133662]
[1740322332518,0.31419018,95907.0,95906.0,0.02133662]
[1740322340335,0.31419018,95907.0,95906.0,0.02459972]
[1740322341241,0.31419018,95907.0,95906.0,0.02133662]
[1740322353370,0.31589038,95907.0,95906.0,0.02133662]
[1740322357471,0.31589038,95907.0,95906.0,0.0008503]
[1740322378669,0.30589038,95907.0,95906.0,0.0008503]
[1740322379754,0.48603607,95907.0,95906.0,0.0008503]
[1740322380923,0.49203607,95907.0,95906.0,0.0008503]
[1740322381096,0.49603607,95907.0,95906.0,0.0008503]
[1740322381294,0.49203607,95907.0,95906.0,0.0008503]
[1740322381525,0.48603607,95907.0,95906.0,0.0008503]
[1740322381902,0.49403607,95907.0,95906.0,0.0008503]
[1740322384728,0.48903607,95907.0,95906.0,0.0008503]
[1740322385121,0.49103607,95907.0,95906.0,0.0008503]
[1740322385454,0.49403607,95907.0,95906.0,0.0008503]
[1740322386684,0.49399607,95907.0,95906.0,0.0008503]
[1740322391715,0.68929607,95907.0,95906.0,0.0008503]
[1740322391865,0.7576573,95907.0,95906.0,0.0008503]
[1740322392671,0.7546573,95907.0,95906.0,0.0008503]
[1740322392876,0.7606573,95907.0,95906.0,0.0008503]
[1740322393322,0.8025773,95907.0,95906.0,0.0008503]
[1740322393530,0.92176384,95907.0,95906.0,0.0008503]
[1740322393732,0.92876384,95907.0,95906.0,0.0008503]
[1740322394087,0.92176384,95907.0,95906.0,0.0008503]
[1740322394543,0.92876384,95907.0,95906.0,0.0008503]
[1740322395023,0.92176384,95907.0,95906.0,0.0008503]
[1740322395436,0.92876384,95907.0,95906.0,0.0008503]
[1740322395658,0.81911815,95907.0,95906.0,0.0008503]
[1740322395871,0.81211815,95907.0,95906.0,0.0008503]
[1740322396200,0.82611815,95907.0,95906.0,0.0008503]
[1740322397618,0.63524073,95903.0,95902.0,0.0005]
[1740322397815,0.80624765,95903.0,95902.0,0.0005]
[1740322398582,0.77414749,95903.0,95902.0,0.0005]
[1740322399219,0.78814749,95903.0,95902.0,0.0005]
[1740322399421,0.78114749,95903.0,95902.0,0.0005]
[1740322399794,0.88379318,95903.0,95902.0,0.0005]
[1740322400193,0.77414749,95903.0,95902.0,0.0005]
[1740322400755,0.78114749,95903.0,95902.0,0.0005]
[1740322401528,0.78814749,95903.0,95902.0,0.0005]
[1740322403237,0.78114749,95903.0,95902.0,0.0005]
[1740322403444,0.02,95898.0,95897.0,0.0008496]
[1740322403652,0.39100676,95898.0,95897.0,0.0008496]
[1740322404359,0.35474569,95898.0,95897.0,0.0008496]
[1740322405441,0.36174569,95898.0,95897.0,0.0008496]
[1740322405664,0.34174569,95898.0,95897.0,0.0008496]
[1740322406333,0.33474569,95898.0,95897.0,0.0008496]
[1740322406548,0.34174569,95898.0,95897.0,0.0008496]
[1740322407740,0.34874569,95898.0,95897.0,0.0008496]
[1740322408147,0.34174569,95898.0,95897.0,0.0008496]
[1740322408748,0.34874569,95898.0,95897.0,0.0008496]
[1740322409386,0.64454557,95898.0,95897.0,0.0008496]
[1740322409591,0.65154557,95898.0,95897.0,0.0008496]
[1740322411872,0.64454557,95898.0,95897.0,0.0008496]
[1740322412464,0.65154557,95898.0,95897.0,0.0008496]
[1740322412893,0.64454557,95898.0,95897.0,0.0008496]
[1740322413132,0.65154557,95898.0,95897.0,0.0008496]
[1740322423717,0.02,95882.0,95863.0,8e-05]
[1740322423922,1.27858654,95882.0,95863.0,8e-05]
[1740322424136,1.89234777,95882.0,95863.0,8e-05]
[1740322425144,1.89239083,95882.0,95863.0,8e-05]
[1740322425552,1.89939083,95882.0,95863.0,8e-05]
[1740322425849,1.90735083,95882.0,95863.0,8e-05]
[1740322426083,1.91435083,95882.0,95863.0,8e-05]
[1740322426286,1.90735083,95882.0,95863.0,8e-05]
[1740322426847,1.87525067,95882.0,95863.0,8e-05]
[1740322427991,1.88225067,95882.0,95863.0,8e-05]
[1740322428377,1.87525067,95882.0,95863.0,8e-05]
[1740322428580,1.97789636,95882.0,95863.0,8e-05]
[1740322428796,1.99287785,95882.0,95863.0,8e-05]
[1740322428997,1.97887785,95882.0,95863.0,8e-05]
[1740322429214,1.98587785,95882.0,95863.0,8e-05]
[1740322429386,1.99287785,95882.0,95863.0,8e-05]
[1740322429582,1.87527216,95882.0,95863.0,8e-05]
[1740322429788,1.88319216,95882.0,95881.0,0.0213982]
[1740322430192,0.02,95880.0,95817.0,0.00792]
[1740322430422,0.1339821,95850.0,95833.0,0.08290241]
[1740322430614,0.28055208,95849.0,95833.0,0.08290241]
[1740322431024,0.28055208,95848.0,95833.0,0.08290241]
[1740322431244,0.28055208,95847.0,95843.0,0.08290241]
[1740322431377,0.28055208,95870.0,95843.0,0.08290241]
[1740322431589,0.28055208,95869.0,95844.0,0.00125183]
[1740322431893,0.28055208,95869.0,95843.0,0.08290241]
[1740322431894,0.28055208,95868.0,95853.0,0.08290241]
[1740322432095,0.28055208,95868.0,95854.0,0.10264569]
[1740322432503,0.28055208,95868.0,95853.0,0.08290241]
[1740322433125,0.28055208,95868.0,95855.0,0.00326432]
[1740322433328,0.28055208,95868.0,95856.0,0.1224]
[1740322434146,0.28255208,95868.0,95856.0,0.1224]
[1740322435380,0.28055208,95868.0,95856.0,0.1224]
[1740322435585,0.28255208,95868.0,95856.0,0.1224]
[1740322442183,0.28055208,95867.0,95856.0,0.1224]
[1740322443782,0.28155208,95867.0,95856.0,0.1224]
[1740322446700,0.46329777,95866.0,95853.0,0.0008502]
[1740322446906,0.1339821,95863.0,95853.0,0.0008502]
[1740322447083,0.10264569,95862.0,95853.0,0.0008502]
[1740322447487,0.10260569,95862.0,95853.0,0.0008502]
[1740322449536,0.10660569,95862.0,95853.0,0.0008502]
[1740322449682,0.10860569,95862.0,95853.0,0.0008502]
[1740322450321,0.10260569,95862.0,95853.0,0.0008502]
[1740322450632,0.10660569,95862.0,95853.0,0.0008502]
[1740322450995,0.28055208,95861.0,95853.0,0.0008502]
[1740322451203,0.10264569,95860.0,95853.0,0.0008502]
[1740322452911,0.28055208,95859.0,95853.0,0.0008502]
[1740322453114,0.10264569,95858.0,95853.0,0.0008502]
[1740322455313,0.10464569,95858.0,95853.0,0.0008502]
[1740322456336,0.10864569,95858.0,95853.0,0.0008502]
[1740322457030,0.27866898,95857.0,95853.0,0.0008502]
[1740322457293,0.10264569,95856.0,95853.0,0.0008502]
[1740322462975,0.27866898,95855.0,95853.0,0.0008502]
[1740322463164,0.10264569,95854.0,95853.0,0.0008502]
[1740322463580,0.17994569,95854.0,95853.0,0.0008502]
[1740322463800,0.45861467,95854.0,95853.0,0.0008502]
[1740322465298,0.65451467,95854.0,95853.0,0.0008502]
[1740322465518,0.65751467,95854.0,95853.0,0.0008502]
[1740322465935,0.65451467,95854.0,95853.0,0.0008502]
[1740322466107,0.72284467,95854.0,95853.0,0.0008502]
[1740322466344,0.72384467,95854.0,95853.0,0.0008502]
[1740322467550,0.69177574,95854.0,95853.0,0.0008502]
[1740322467753,0.65551467,95854.0,95853.0,0.0008502]
[1740322468134,0.60861467,95854.0,95853.0,0.0008502]
[1740322468538,0.61361467,95854.0,95853.0,0.0008502]
[1740322468924,0.60861467,95854.0,95853.0,0.0008502]
[1740322469365,0.61361467,95854.0,95853.0,0.0008502]
[1740322469959,0.60861467,95854.0,95853.0,0.0008502]
[1740322470193,0.61361467,95854.0,95853.0,0.0008502]
[1740322471407,0.60861467,95854.0,95853.0,0.0008502]
[1740322471767,0.61161467,95854.0,95853.0,0.0008502]
[1740322473850,0.66081467,95854.0,95853.0,0.0008502]
[1740322474053,0.66181467,95854.0,95853.0,0.0008502]
[1740322474579,0.65881467,95854.0,95853.0,0.0008502]
[1740322475033,0.66181467,95854.0,95853.0,0.0008502]
[1740322475525,0.65881467,95854.0,95853.0,0.0008502]
[1740322475642,0.66481467,95854.0,95853.0,0.0008502]
[1740322476094,0.66981467,95854.0,95853.0,0.0008502]
[1740322476250,0.65781467,95854.0,95853.0,0.0008502]
[1740322476650,0.66281467,95854.0,95853.0,0.0008502]
[1740322476860,0.65781467,95854.0,95853.0,0.0008502]
[1740322477364,0.66281467,95854.0,95853.0,0.0008502]
[1740322477784,0.66981467,95854.0,95853.0,0.0008502]
[1740322478202,0.66281467,95854.0,95853.0,0.0008502]
[1740322478632,0.66981467,95854.0,95853.0,0.0008502]
[1740322480530,0.62061467,95854.0,95853.0,0.0008502]
[1740322480709,0.39331467,95854.0,95853.0,0.0008502]
[1740322484163,0.47111467,95854.0,95853.0,0.0008502]